bitfinex/quotes_SOLUSD_20251126
["timestamp","ask_amount","ask_price","bid_price","bid_amount"]
[1764133264621,103.4,138.34,138.33,9.66210649]
[1764133266300,103.4,138.34,138.33,16.89119634]
[1764133269128,104.11,138.37,138.35,16.308864]
[1764133269302,105.44957556,138.36,138.35,16.308864]
[1764133269626,103.4,138.36,138.35,16.308864]
[1764133274834,106.59757138,138.36,138.35,16.308864]
[1764133279045,103.4,138.36,138.35,24.24690881]
[1764133279445,103.4,138.36,138.35,17.018864]
[1764133281342,106.59757138,138.36,138.35,17.018864]
[1764133282350,103.4,138.36,138.35,17.018864]
[1764133287138,103.4,138.36,138.35,24.24690881]
[1764133290051,3.18,138.38,138.36,8.80994492]
[1764133290233,3.18,138.38,138.36,9.51994492]
[1764133290549,3.18,138.38,138.37,0.71]
[1764133291348,3.18,138.38,138.37,7.93700007]
[1764133292443,3.19757138,138.39,138.37,7.93700007]
[1764133292649,6.37757138,138.39,138.37,7.93700007]
[1764133293561,6.37757138,138.39,138.38,17.018864]
[1764133295057,3.18,138.39,138.38,17.018864]
[1764133295249,6.37757138,138.39,138.38,17.018864]
[1764133295627,3.19757138,138.39,138.38,24.24534181]
[1764133296238,109.77757138,138.4,138.38,24.24534181]
[1764133297754,106.58,138.4,138.39,0.71]
[1764133297942,103.4,138.4,138.39,9.66210649]
[1764133298563,103.4,138.4,138.39,8.95210649]
[1764133298765,106.59757138,138.4,138.39,8.95210649]
[1764133300049,103.4,138.4,138.39,16.88806212]
[1764133305866,106.59757138,138.4,138.39,8.95210649]
[1764133306847,106.59757138,138.4,138.39,9.67210649]
[1764133307863,106.59757138,138.4,138.39,8.95210649]
[1764133308045,107.25757138,138.4,138.38,16.308864]
[1764133308366,3.19757138,138.39,138.37,7.22691555]
[1764133308569,3.19757138,138.39,138.38,0.72]
[1764133308866,106.59757138,138.4,138.39,16.308864]
[1764133311872,103.4,138.4,138.39,16.308864]
[1764133313757,7.03757138,138.41,138.4,16.308864]
[1764133314871,3.18,138.41,138.4,16.308864]
[1764133315171,3.18,138.41,138.4,17.028864]
[1764133315478,0.2,138.42,138.4,17.028864]
[1764133315769,103.4,138.41,138.4,16.308864]
[1764133318271,104.06,138.41,138.4,16.308864]
[1764133318478,103.4,138.41,138.4,16.308864]
[1764133319656,4.05757138,138.42,138.4,16.308864]
[1764133320657,0.2,138.42,138.41,9.52994492]
[1764133320872,0.2,138.42,138.41,9.67210649]
[1764133321384,0.2,138.42,138.41,0.72]
[1764133323266,103.6,138.42,138.41,0.72]
[1764133324076,103.6,138.42,138.41,16.308864]
[1764133324283,107.47757138,138.42,138.41,16.308864]
[1764133326982,106.79757138,138.42,138.41,16.308864]
[1764133327460,106.79757138,138.42,138.41,16.968864]
[1764133327658,106.79757138,138.42,138.41,16.308864]
[1764133327886,103.6,138.42,138.41,16.308864]
[1764133331982,103.6,138.42,138.41,16.968864]
[1764133332168,103.6,138.42,138.41,16.308864]
[1764133332887,103.6,138.42,138.41,16.968864]
[1764133340381,103.6,138.42,138.41,24.19377549]
[1764133342903,103.6,138.42,138.41,16.968864]
[1764133343077,104.26,138.42,138.41,16.308864]
[1764133343488,104.26,138.42,138.41,16.23276088]
[1764133343679,103.6,138.42,138.41,16.23276088]
[1764133344078,106.30416332,138.42,138.37,8.80994492]
[1764133344395,5.88416332,138.41,138.38,0.71]
[1764133345195,5.88416332,138.41,138.38,7.93644193]
[1764133345378,5.88416332,138.41,138.37,8.80994492]
[1764133345379,0.66,138.4,138.37,16.03692187]
[1764133345581,0.66,138.4,138.39,16.308864]
[1764133347791,5.88416332,138.41,138.4,16.308864]
[1764133350488,3.84,138.41,138.4,16.308864]
[1764133350805,5.88416332,138.41,138.4,16.308864]
[1764133351712,5.88416332,138.41,138.38,16.308864]
[1764133351903,2.70416332,138.4,138.39,16.308864]
[1764133353090,3.18,138.41,138.39,17.018864]
[1764133353290,3.18,138.4,138.39,16.308864]
[1764133354109,3.18,138.4,138.38,0.71]
[1764133354410,3.18,138.4,138.39,16.308864]
[1764133354800,3.18,138.4,138.39,0.71]
[1764133355499,2.04416332,138.41,138.39,0.71]
[1764133355716,2.04416332,138.41,138.4,16.308864]
[1764133359999,2.70416332,138.41,138.4,16.308864]
[1764133360814,2.70416332,138.41,138.36,11.11733011]
[1764133361018,2.04416332,138.39,138.38,16.308864]
[1764133362200,2.04416332,138.39,138.37,0.71]
[1764133362408,2.04416332,138.39,138.38,16.308864]
[1764133363801,2.72416332,138.39,138.36,24.20619411]
[1764133364716,2.04416332,138.38,138.36,16.978864]
[1764133365917,2.72416332,138.38,138.36,16.308864]
[1764133366104,13.9844897,138.4,138.34,21.25083315]
[1764133366105,2.72416332,138.37,138.34,24.20721899]
[1764133366306,2.72416332,138.37,138.34,16.978864]
[1764133366509,2.04416332,138.37,138.35,0.67]
[1764133369935,5.22416332,138.38,138.35,0.67]
[1764133370141,103.4,138.36,138.35,7.89802336]
[1764133379246,103.4,138.36,138.35,0.67]
[1764133379636,103.4,138.36,138.34,23.53723165]
[1764133379637,104.08,138.36,138.34,23.53723165]
[1764133379822,2.72416332,138.35,138.34,16.308864]
[1764133380526,0.68,138.35,138.34,16.308864]
[1764133380937,103.4,138.34,138.3,0.67]
[1764133381243,2.04416332,138.31,138.27,8.80994492]
[1764133381444,2.04416332,138.29,138.26,0.67]
[1764133382047,2.04416332,138.28,138.27,16.308864]
[1764133382348,5.89416332,138.28,138.23,7.91430531]
[1764133382643,2.04416332,138.26,138.23,0.68]
[1764133382847,2.04416332,138.26,138.23,16.988864]
[1764133383048,2.71416332,138.26,138.23,16.988864]
[1764133383236,2.04416332,138.26,138.23,24.22316673]
[1764133383535,2.04416332,138.26,138.23,7.91430273]
[1764133383840,3.18,138.28,138.24,11.53410824]
[1764133384149,5.22416332,138.31,138.26,18.35302732]
[1764133384450,5.89416332,138.31,138.26,18.35302732]
[1764133384630,5.89416332,138.31,138.27,0.68]
[1764133385020,5.89416332,138.31,138.27,7.91217383]
[1764133385643,5.89416332,138.31,138.27,7.23217383]
[1764133385830,5.89416332,138.31,138.28,0.68]
[1764133387016,3.18,138.31,138.28,24.22055922]
[1764133387642,103.4,138.3,138.29,11.67626981]
[1764133387827,3.18,138.33,138.3,8.95210649]
[1764133388022,5.89416332,138.35,138.3,10.99626981]
[1764133388424,5.89416332,138.35,138.31,0.68]
[1764133389316,0.67,138.34,138.31,0.68]
[1764133389547,5.89416332,138.35,138.31,0.68]
[1764133390625,103.4,138.36,138.31,26.2630996]
[1764133390830,22.40361828,138.37,138.32,2.04416332]
[1764133390831,106.58,138.35,138.32,2.04416332]
[1764133391043,106.58,138.35,138.32,2.72416332]
[1764133391565,106.58,138.35,138.33,0.68]
[1764133393253,103.4,138.35,138.33,0.68]
[1764133394059,103.4,138.34,138.33,0.68]
[1764133394937,103.4,138.34,138.33,24.21795385]
[1764133396350,103.4,138.34,138.33,35.21422366]
[1764133396539,103.4,138.34,138.33,36.36742029]
[1764133396740,103.4,138.34,138.33,33.17006034]
[1764133400766,103.4,138.34,138.33,24.21795385]
[1764133400960,103.4,138.34,138.33,25.26097049]
[1764133401256,103.4,138.34,138.33,16.308864]
[1764133406350,106.58,138.34,138.33,16.308864]
[1764133407743,106.58,138.34,138.33,17.008864]
[1764133407953,103.4,138.34,138.33,20.20622395]
[1764133408144,103.4,138.34,138.33,27.4353138]
[1764133409156,103.4,138.34,138.33,36.38742029]
[1764133411768,103.4,138.34,138.33,33.19006034]
[1764133411959,103.4,138.34,138.33,36.38742029]
[1764133414541,103.4,138.34,138.33,58.11474239]
[1764133415342,103.4,138.34,138.33,36.38742029]
[1764133416079,103.4,138.34,138.33,58.11474239]
[1764133420254,103.4,138.34,138.33,36.38742029]
[1764133422577,103.4,138.34,138.33,58.11474239]
[1764133424586,103.4,138.34,138.33,36.38742029]
[1764133425371,103.4,138.34,138.33,58.11474239]
[1764133426180,103.4,138.34,138.33,36.38742029]
[1764133429991,104.12,138.34,138.33,16.308864]
[1764133430178,103.4,138.34,138.33,16.308864]
[1764133432184,103.4,138.34,138.33,23.53795385]
[1764133434278,103.4,138.34,138.33,24.20795385]
[1764133436786,103.4,138.34,138.33,23.53795385]
[1764133436996,103.4,138.34,138.33,24.20795385]
[1764133438269,103.4,138.34,138.33,23.53795385]
[1764133439279,103.4,138.34,138.33,24.20795385]
[1764133441386,103.4,138.34,138.33,23.53795385]
[1764133443481,103.4,138.34,138.33,24.20795385]
[1764133444888,103.4,138.34,138.33,36.35742029]
[1764133445395,103.4,138.34,138.33,39.53742029]
[1764133456317,0.72,138.37,138.33,39.53742029]
[1764133456318,104.12,138.37,138.36,16.308864]
[1764133462415,103.4,138.37,138.36,32.48849289]
[1764133462579,0.72,138.4,138.36,26.29208901]
[1764133462784,3.9,138.4,138.37,2.04570261]
[1764133463214,3.9,138.4,138.36,26.29208901]
[1764133463394,0.72,138.39,138.36,26.29208901]
[1764133464619,0.72,138.39,138.36,24.2463864]
[1764133466218,3.18,138.4,138.39,16.308864]
[1764133466421,103.4,138.41,138.4,16.308864]
[1764133466645,103.4,138.41,138.4,35.24210662]
[1764133468115,103.4,138.41,138.4,34.53210662]
[1764133469617,103.4,138.41,138.4,35.24210662]
[1764133469829,103.4,138.41,138.4,34.53210662]
[1764133473506,103.4,138.41,138.4,35.24210662]
[1764133473704,103.4,138.41,138.4,34.53210662]
[1764133479717,103.4,138.41,138.4,35.24210662]
[1764133480034,103.4,138.41,138.4,34.53210662]
[1764133480811,104.12,138.41,138.4,34.53210662]
[1764133481013,104.12,138.41,138.4,25.26097049]
[1764133481509,104.12,138.41,138.39,10.40573399]
[1764133481709,103.4,138.41,138.4,16.308864]
[1764133482133,104.12,138.41,138.4,16.308864]
[1764133486441,0.72,138.41,138.4,16.308864]
[1764133486747,104.12,138.41,138.4,16.308864]
[1764133491843,0.72,138.41,138.4,16.308864]
[1764133499048,3.38,138.42,138.4,23.53429752]
[1764133499253,0.2,138.42,138.4,26.25000013]
[1764133499464,0.2,138.42,138.4,23.53429752]
[1764133499675,0.88,138.42,138.4,23.53429752]
[1764133499952,0.88,138.42,138.41,16.308864]
[1764133507670,2.92570261,138.42,138.41,16.308864]
[1764133508448,0.88,138.42,138.41,16.308864]
[1764133509669,0.2,138.42,138.41,16.308864]
[1764133510754,0.89,138.42,138.41,16.308864]
[1764133513267,0.2,138.42,138.41,16.308864]
[1764133514067,0.2,138.42,138.41,24.18377549]
[1764133515278,0.2,138.42,138.41,16.308864]
[1764133518869,0.2,138.42,138.41,16.958864]
[1764133521889,0.2,138.42,138.41,16.308864]
[1764133521890,4.0443406,138.42,138.41,16.308864]
[1764133522868,0.85,138.42,138.41,16.308864]
[1764133523070,11.26873013,138.42,138.35,0.65]
[1764133523290,3.1943406,138.38,138.35,0.65]
[1764133523492,3.1943406,138.38,138.35,24.18687647]
[1764133523696,3.8443406,138.38,138.35,24.18687647]
[1764133524591,7.42438953,138.4,138.35,23.53687647]
[1764133524783,3.1943406,138.39,138.36,0.65]
[1764133525396,3.8443406,138.4,138.36,0.65]
[1764133525578,3.1943406,138.4,138.37,16.308864]
[1764133526093,3.1943406,138.4,138.37,16.958864]
[1764133526299,3.1943406,138.41,138.39,16.308864]
[1764133526468,3.3943406,138.42,138.39,16.308864]
[1764133526666,3.3943406,138.42,138.4,0.65]
[1764133526667,0.2,138.42,138.4,0.65]
[1764133527192,0.2,138.42,138.41,16.308864]
[1764133527690,3.3943406,138.42,138.41,16.308864]
[1764133530996,0.2,138.42,138.41,16.308864]
[1764133531201,0.2,138.42,138.41,16.958864]
[1764133531388,0.2,138.42,138.41,24.18377549]
[1764133532601,0.2,138.42,138.41,33.13588198]
[1764133538703,0.2,138.42,138.41,32.99372041]
[1764133540013,0.2,138.42,138.41,33.13588198]
[1764133541209,0.2,138.42,138.41,25.91097049]
[1764133553497,0.2,138.42,138.41,33.13588198]
[1764133561515,0.2,138.42,138.41,25.26097049]
[1764133562507,0.2,138.42,138.41,25.96097049]
[1764133562826,0.2,138.42,138.41,33.18588198]
[1764133572130,0.2,138.42,138.41,36.38022258]
[1764133574709,0.2,138.42,138.41,33.18588198]
[1764133576311,0.2,138.42,138.41,36.38022258]
[1764133576931,0.2,138.42,138.41,39.27531178]
[1764133578518,0.2,138.42,138.41,38.1242674]
[1764133579138,0.2,138.42,138.41,41.3042674]
[1764133581008,0.2,138.44,138.42,8.95210649]
[1764133581209,0.2,138.44,138.43,14.17540271]
[1764133581409,0.2,138.44,138.43,14.84540271]
[1764133581610,0.2,138.44,138.43,17.73986343]
[1764133582635,0.2,138.44,138.43,24.96373108]
[1764133583319,0.2,138.45,138.44,8.95210649]
[1764133583628,0.2,138.45,138.44,11.66540271]
[1764133584028,0.2,138.45,138.44,14.5594446]
[1764133585048,0.2,138.45,138.44,21.78279045]
[1764133588840,0.2,138.45,138.44,24.96279045]
[1764133589851,0.2,138.46,138.44,24.96279045]
[1764133590033,0.2,138.48,138.47,27.30426671]
[1764133590234,0.2,138.48,138.47,30.48426671]
[1764133590432,0.2,138.48,138.47,31.15426671]
[1764133590931,0.2,138.48,138.47,34.04788988]
[1764133591843,0.2,138.48,138.47,41.26967077]
[1764133600448,0.2,138.48,138.47,43.31296699]
[1764133600621,0.2,138.48,138.47,40.13296699]
[1764133600826,0.2,138.48,138.47,43.31296699]
[1764133601049,0.2,138.48,138.47,41.26967077]
[1764133603062,0.2,138.49,138.48,8.95210649]
[1764133603349,0.2,138.49,138.48,11.66540271]
[1764133603652,0.2,138.49,138.48,33.36600671]
[1764133604033,0.2,138.49,138.48,40.58726609]
[1764133606432,1e-08,138.49,138.48,40.58726609]
[1764133607235,1e-08,138.49,138.48,43.76726609]
[1764133607438,1e-08,138.49,138.48,40.58726609]
[1764133607745,1e-08,138.49,138.48,43.76726609]
[1764133608052,1e-08,138.49,138.48,40.58726609]
[1764133608241,1e-08,138.49,138.48,43.76726609]
[1764133610532,1e-08,138.49,138.48,43.64726609]
[1764133611244,1e-08,138.5,138.49,0.71]
[1764133611430,0.2,138.51,138.49,0.71]
[1764133611431,0.2,138.53,138.52,16.45102557]
[1764133611769,0.2,138.53,138.52,22.3962392]
[1764133611928,0.2,138.53,138.52,23.1062392]
[1764133612128,0.2,138.53,138.52,25.99860696]
[1764133612349,0.2,138.53,138.52,33.21778108]
[1764133612632,0.2,138.53,138.52,42.027726]
[1764133613339,0.2,138.53,138.52,38.847726]
[1764133613540,0.2,138.53,138.52,42.027726]
[1764133614056,0.2,138.53,138.52,38.847726]
[1764133614255,0.2,138.53,138.52,42.027726]
[1764133616460,1e-08,138.53,138.52,42.027726]
[1764133616664,0.2,138.56,138.54,0.14216157]
[1764133616855,0.2,138.56,138.54,14.17540271]
[1764133617050,0.2,138.56,138.54,14.88540271]
[1764133617251,0.2,138.56,138.54,17.77735224]
[1764133617740,0.2,138.56,138.54,24.99548418]
[1764133620147,1e-08,138.55,138.54,24.99548418]
[1764133620358,1e-08,138.57,138.56,8.95210649]
[1764133620660,1e-08,138.57,138.56,12.85381549]
[1764133620847,1e-08,138.57,138.56,15.60711171]
[1764133621052,1e-08,138.57,138.56,18.49843412]
[1764133622069,1e-08,138.57,138.56,25.71552418]
[1764133622370,1e-08,138.61,138.6,25.26097049]
[1764133622572,1e-08,138.61,138.6,28.44097049]
[1764133622779,0.67000001,138.61,138.6,28.44097049]
[1764133623147,0.67000001,138.61,138.6,50.12275417]
[1764133623348,1e-08,138.61,138.6,50.12275417]
[1764133623655,1e-08,138.61,138.6,52.16605039]
[1764133624059,1e-08,138.61,138.6,59.3810576]
[1764133625558,1e-08,138.61,138.6,57.33776138]
[1764133626752,1e-08,138.61,138.6,54.87776138]
[1764133626952,1e-08,138.61,138.6,57.33776138]
[1764133627883,1e-08,138.61,138.6,60.1010576]
[1764133628080,1e-08,138.61,138.6,59.3810576]
[1764133629293,1e-08,138.61,138.6,60.1010576]
[1764133629958,1e-08,138.62,138.61,9.67210649]
[1764133630257,1e-08,138.62,138.61,18.20988939]
[1764133630454,1e-08,138.62,138.61,22.10988939]
[1764133632170,0.2,138.67,138.66,16.0218301]
[1764133632382,0.2,138.67,138.66,21.38728789]
[1764133632558,0.87,138.67,138.66,16.16399167]
[1764133632754,0.87,138.67,138.66,40.73127956]
[1764133633061,0.87,138.67,138.66,42.77457578]
[1764133633267,0.2,138.67,138.66,42.77457578]
[1764133634968,0.2,138.67,138.66,43.46457578]
[1764133636177,0.2,138.67,138.66,42.77457578]
[1764133637259,0.2,138.67,138.66,43.46457578]
[1764133637870,0.2,138.67,138.66,59.77343978]
[1764133639277,1e-08,138.67,138.66,59.77343978]
[1764133640469,1e-08,138.67,138.66,53.86014356]
[1764133640669,1e-08,138.67,138.66,60.22128035]
[1764133640972,1e-08,138.67,138.66,43.91241635]
[1764133641176,0.65000001,138.67,138.66,40.73127956]
[1764133641381,0.65000001,138.67,138.66,43.91241635]
[1764133642108,1e-08,138.67,138.66,43.91241635]
[1764133642395,0.65000001,138.67,138.66,33.37723281]
[1764133642689,0.65000001,138.67,138.66,40.73127956]
[1764133642893,1e-08,138.67,138.66,44.60241635]
[1764133644891,1e-08,138.67,138.66,41.42241635]
[1764133645194,1e-08,138.67,138.66,44.60241635]
[1764133646839,1e-08,138.67,138.66,60.91128035]
[1764133647578,1e-08,138.67,138.66,57.73128035]
[1764133647786,1e-08,138.67,138.66,60.91128035]
[1764133650203,1e-08,138.67,138.66,54.55014356]
[1764133650392,1e-08,138.67,138.66,60.76911878]
[1764133650598,1e-08,138.67,138.66,60.91128035]
[1764133655007,0.65000001,138.67,138.66,43.91241635]
[1764133656000,0.65000001,138.67,138.66,40.58911799]
[1764133656307,0.65000001,138.67,138.66,40.73127956]
[1764133657606,0.65000001,138.67,138.66,37.55127956]
[1764133657906,0.65000001,138.67,138.66,40.73127956]
[1764133658605,1e-08,138.67,138.66,40.73127956]
[1764133659198,0.65000001,138.67,138.66,40.73127956]
[1764133661485,1e-08,138.67,138.66,40.73127956]
[1764133662212,0.65000001,138.67,138.66,40.73127956]
[1764133663310,1e-08,138.67,138.66,40.73127956]
[1764133664700,0.67000001,138.67,138.66,30.33939438]
[1764133665009,0.67000001,138.67,138.66,33.51939438]
[1764133665412,0.67000001,138.67,138.66,40.73127956]
[1764133665716,0.67000001,138.67,138.66,33.51939438]
[1764133665912,0.67000001,138.67,138.66,40.73127956]
[1764133667401,0.67000001,138.67,138.66,19.34399167]
[1764133668003,0.67000001,138.67,138.66,8.80994492]
[1764133668210,0.67000001,138.67,138.66,16.16399167]
[1764133669220,0.67000001,138.67,138.66,8.95210649]
[1764133670123,0.67000001,138.67,138.66,16.16399167]
[1764133670908,0.67000001,138.67,138.66,8.95210649]
[1764133671698,0.67000001,138.67,138.65,10.39222248]
[1764133671699,107.2511368,138.67,138.65,8.95210649]
[1764133671921,3.85113679,138.66,138.65,8.95210649]
[1764133672621,3.85113679,138.66,138.64,10.39278834]
[1764133672794,0.67,138.65,138.64,19.20273326]
[1764133673425,0.67,138.65,138.64,19.34489483]
[1764133673625,104.07000001,138.67,138.65,8.95210649]
[1764133673934,0.67,138.66,138.65,8.95210649]
[1764133674098,0.67,138.66,138.65,16.16451182]
[1764133674297,104.07000001,138.67,138.65,16.16451182]
[1764133675199,103.40000001,138.67,138.65,16.87451182]
[1764133676026,1e-08,138.67,138.65,16.87451182]
[1764133676513,1e-08,138.67,138.66,12.13210649]
[1764133677023,0.67000001,138.67,138.66,12.13210649]
[1764133678429,0.67000001,138.67,138.66,19.34399167]
[1764133678929,1e-08,138.67,138.66,19.34399167]
[1764133681927,103.40000001,138.67,138.66,19.34399167]
[1764133682812,103.40000001,138.67,138.66,23.23512846]
[1764133683004,1e-08,138.67,138.66,44.90751422]
[1764133683203,1e-08,138.67,138.66,41.72637743]
[1764133683509,1e-08,138.67,138.66,44.90751422]
[1764133686233,1e-08,138.67,138.66,61.21637822]
[1764133689253,1e-08,138.67,138.66,44.90751422]
[1764133701657,0.66,138.74,138.7,25.11880892]
[1764133701849,3.18113679,138.76,138.73,0.14216157]
[1764133702051,3.18113679,138.74,138.73,0.14216157]
[1764133702246,3.18113679,138.74,138.73,8.21210649]
[1764133702435,3.18113679,138.74,138.68,8.80994492]
[1764133702639,16.308864,138.77,138.68,8.80994492]
[1764133702640,2.03595044,138.71,138.68,3.18]
[1764133703244,2.03595044,138.71,138.7,8.80994492]
[1764133703465,103.4,138.76,138.7,8.80994492]
[1764133703466,2.03595044,138.72,138.7,8.80994492]
[1764133703854,2.03595044,138.71,138.7,8.80994492]
[1764133704062,2.03595044,138.71,138.69,8.80994492]
[1764133704251,2.03595044,138.7,138.69,8.80994492]
[1764133705758,2.03595044,138.7,138.67,21.67238576]
[1764133705959,2.03595044,138.69,138.68,8.80994492]
[1764133706163,2.03595044,138.69,138.67,8.80994492]
[1764133709571,2.03595044,138.68,138.67,8.80994492]
[1764133710066,2.03595044,138.69,138.67,16.02131003]
[1764133710569,2.03595044,138.7,138.67,16.02131003]
[1764133710770,2.03595044,138.69,138.67,16.02131003]
[1764133711374,16.308864,138.72,138.67,16.02131003]
[1764133711549,103.4,138.71,138.68,0.14216157]
[1764133711754,105.43595044,138.71,138.68,0.14216157]
[1764133711955,105.43595044,138.71,138.68,3.32216157]
[1764133712154,105.43595044,138.71,138.68,3.99216157]
[1764133713555,105.43595044,138.71,138.69,8.80994492]
[1764133714775,103.4,138.71,138.69,8.80994492]
[1764133714946,105.43595044,138.71,138.69,8.80994492]
[1764133715547,105.43595044,138.71,138.69,16.01990759]
[1764133715869,103.4,138.71,138.69,16.01990759]
[1764133717676,103.4,138.7,138.69,16.83206916]
[1764133717879,103.4,138.7,138.69,16.16206916]
[1764133718051,103.4,138.7,138.69,37.8328894]
[1764133718376,103.4,138.7,138.69,38.5028894]
[1764133718758,103.4,138.7,138.69,40.53883984]
[1764133719778,103.4,138.7,138.69,38.5028894]
[1764133719981,103.4,138.7,138.69,41.6828894]
[1764133724673,7.20622003,138.77,138.7,0.14216157]
[1764133724674,105.43595044,138.74,138.7,0.14216157]
[1764133724972,103.4,138.73,138.7,0.14216157]
[1764133725151,103.4,138.73,138.71,8.80994492]
[1764133726081,103.4,138.73,138.71,30.47763478]
[1764133727674,103.4,138.73,138.72,16.01871077]
[1764133731092,103.4,138.73,138.72,8.80994492]
[1764133731559,103.4,138.73,138.72,16.01871077]
[1764133731854,103.4,138.73,138.72,16.16087234]
[1764133732058,103.4,138.73,138.72,18.89682278]
[1764133732474,103.4,138.73,138.72,40.56138316]
[1764133735765,103.4,138.73,138.72,43.04138316]
[1764133735991,103.4,138.73,138.72,43.74138316]
[1764133739991,103.4,138.76,138.73,8.95210649]
[1764133740187,103.4,138.76,138.75,0.14216157]
[1764133741278,103.4,138.76,138.75,2.87811201]
[1764133741684,103.4,138.76,138.75,17.60400737]
[1764133741998,103.4,138.79,138.77,8.80994492]
[1764133744410,103.4,138.79,138.77,16.01597426]
[1764133745191,105.43595044,138.79,138.76,8.80994492]
[1764133745383,105.43595044,138.79,138.75,10.38702823]
[1764133745976,2.03595044,138.78,138.75,3.18]
[1764133746381,2.03595044,138.77,138.75,8.80994492]
[1764133746581,2.03595044,138.78,138.75,8.80994492]
[1764133746790,5.21595044,138.78,138.75,8.80994492]
[1764133747380,103.4,138.77,138.75,8.80994492]
[1764133749102,103.4,138.76,138.74,10.38759831]
[1764133749402,103.4,138.75,138.74,11.98994492]
[1764133749602,103.4,138.75,138.74,8.80994492]
[1764133750415,103.4,138.74,138.71,29.01559381]
[1764133750600,103.4,138.74,138.72,8.80994492]
[1764133751082,103.4,138.74,138.72,11.52589536]
[1764133753080,103.4,138.74,138.73,16.01819115]
[1764133753286,103.4,138.74,138.73,18.05414159]
[1764133753497,103.4,138.74,138.73,18.73414159]
[1764133753885,103.4,138.74,138.73,16.69819115]
[1764133754094,103.4,138.74,138.73,19.87819115]
[1764133755104,103.4,138.74,138.73,16.01819115]
[1764133755507,103.4,138.74,138.73,16.70819115]
[1764133755911,103.4,138.74,138.73,18.88630316]
[1764133756704,103.4,138.78,138.74,8.95210649]
[1764133756904,103.4,138.78,138.77,8.80994492]
[1764133758310,103.4,138.78,138.77,16.0161134]
[1764133759018,103.4,138.78,138.77,16.7061134]
[1764133759207,103.4,138.78,138.77,19.8861134]
[1764133759901,103.4,138.78,138.77,19.1961134]
[1764133760112,103.4,138.78,138.77,20.02827497]
[1764133760298,103.4,138.78,138.77,22.06422541]
[1764133760617,103.4,138.78,138.77,43.72096607]
[1764133761993,103.4,138.92,138.81,8.80994492]
[1764133762195,103.4,138.92,138.8,25.11880892]
[1764133762196,2.03595044,138.9,138.84,0.14216157]
[1764133762414,2.13595044,138.87,138.82,2.17811201]
[1764133762690,3.17474016,138.86,138.84,16.308864]
[1764133762902,3.17474016,138.85,138.83,8.80994492]
[1764133763105,3.17474016,138.86,138.84,3.18]
[1764133763616,3.17474016,138.86,138.83,11.98994492]
[1764133764116,3.17474016,138.85,138.83,11.98994492]
[1764133764286,3.17474016,138.86,138.83,11.98994492]
[1764133765197,3.17474016,138.86,138.83,19.1928533]
[1764133765915,3.27474016,138.87,138.83,19.1928533]
[1764133766800,3.27474016,138.87,138.83,23.05759346]
[1764133767124,103.4,138.86,138.83,23.05759346]
[1764133767494,103.4,138.86,138.83,19.1928533]
[1764133768022,103.4,138.86,138.83,19.8828533]
[1764133769996,106.57474016,138.86,138.83,19.1928533]
[1764133772307,106.57474016,138.86,138.83,16.0128533]
[1764133772513,106.57474016,138.86,138.83,16.7028533]
[1764133773621,106.57474016,138.86,138.83,9.49994492]
[1764133774318,106.57474016,138.86,138.83,8.80994492]
[1764133775009,103.4,138.85,138.83,8.80994492]
[1764133775521,103.4,138.85,138.83,9.49994492]
[1764133775912,103.4,138.85,138.83,8.80994492]
[1764133776109,103.4,138.84,138.82,10.38343115]
[1764133776419,103.4,138.84,138.82,11.07343115]
[1764133777003,103.4,138.84,138.82,3.18]
[1764133777208,106.57474016,138.84,138.81,16.01401]
[1764133777622,106.57474016,138.84,138.81,16.70401]
[1764133777821,106.57474016,138.84,138.81,8.80994492]
[1764133779419,106.57474016,138.84,138.8,10.84450932]
[1764133781321,106.57474016,138.84,138.81,8.80994492]
[1764133781517,3.17474016,138.83,138.81,8.80994492]
[1764133782829,106.57474016,138.82,138.79,12.13210649]